bitfinex/quotes_BTCUSD_20241025
["timestamp","ask_amount","ask_price","bid_price","bid_amount"]
[1729844774055,0.15141202,67586.0,67582.0,0.295936]
[1729844774056,0.15141202,67586.0,67584.0,0.147963]
[1729844774330,0.15141202,67586.0,67582.0,0.295936]
[1729844774519,0.15141202,67586.0,67580.0,0.001646]
[1729844774520,0.15141202,67586.0,67583.0,0.147964]
[1729844774769,0.32237602,67584.0,67580.0,0.001646]
[1729844774996,0.17441202,67584.0,67580.0,0.001646]
[1729844775640,0.32237602,67584.0,67580.0,0.001646]
[1729844775861,0.17441202,67584.0,67580.0,0.149617]
[1729844776084,0.65049404,67581.0,67580.0,0.001646]
[1729844776299,0.66049404,67581.0,67580.0,0.001646]
[1729844777166,0.66049404,67581.0,67567.0,0.001648]
[1729844777167,0.352599,67568.0,67567.0,0.001648]
[1729844777393,0.35601202,67568.0,67567.0,0.001648]
[1729844779535,0.50401102,67568.0,67567.0,0.001648]
[1729844779738,0.15141202,67568.0,67567.0,0.149649]
[1729844782917,0.15141202,67572.0,67567.0,0.44815381]
[1729844783127,0.15641202,67572.0,67571.0,0.147992]
[1729844783519,0.15141202,67572.0,67571.0,0.147992]
[1729844784551,0.15641202,67572.0,67571.0,0.147992]
[1729844785436,0.15141202,67572.0,67571.0,0.147992]
[1729844786291,0.005,67577.0,67576.0,0.147981]
[1729844786503,0.15641202,67577.0,67576.0,0.147981]
[1729844786709,0.15141202,67577.0,67576.0,0.147981]
[1729844786907,0.15641202,67577.0,67576.0,0.147981]
[1729844787171,0.15141202,67577.0,67571.0,0.295981]
[1729844787374,0.15141202,67577.0,67569.0,0.00462677]
[1729844787588,0.005,67576.0,67575.0,0.147983]
[1729844787996,0.005,67575.0,67572.0,0.29598]
[1729844788200,0.005,67572.0,67571.0,0.22040187]
[1729844788408,0.15141202,67573.0,67571.0,0.22040187]
[1729844788633,0.15141202,67573.0,67572.0,0.14799]
[1729844790388,0.15141202,67573.0,67572.0,0.15261677]
[1729844790591,0.15641202,67577.0,67576.0,0.147981]
[1729844790813,0.15141202,67577.0,67576.0,0.147981]
[1729844791411,0.005,67578.0,67577.0,0.147979]
[1729844791855,0.005,67577.0,67575.0,0.147981]
[1729844792065,0.005,67578.0,67577.0,0.147979]
[1729844792505,0.005,67577.0,67573.0,0.295976]
[1729844792736,0.005,67577.0,67575.0,0.147981]
[1729844792942,0.15641202,67578.0,67575.0,0.147981]
[1729844793114,0.005,67577.0,67575.0,0.147981]
[1729844793320,0.005,67577.0,67576.0,0.00462674]
[1729844793978,0.152979,67577.0,67576.0,0.00462674]
[1729844794990,0.005,67577.0,67576.0,0.00462674]
[1729844796496,0.152979,67577.0,67576.0,0.00462674]
[1729844797082,0.005,67577.0,67576.0,0.00462674]
[1729844799765,0.005,67577.0,67576.0,0.15260774]
[1729844800074,0.15641202,67578.0,67576.0,0.15260774]
[1729844800285,0.15641202,67578.0,67577.0,0.00462674]
[1729844801139,0.30438902,67578.0,67577.0,0.00462674]
[1729844801312,0.15641202,67578.0,67577.0,0.00462674]
[1729844802357,0.15641202,67578.0,67577.0,0.15260574]
[1729844802994,0.15641202,67578.0,67577.0,0.00462674]
[1729844803162,0.15641202,67578.0,67577.0,0.147979]
[1729844803342,0.15641202,67578.0,67577.0,0.15260561]
[1729844806713,0.15641202,67578.0,67577.0,0.15260558]
[1729844807599,0.15641202,67578.0,67577.0,0.00462658]
[1729844808298,0.15641202,67578.0,67577.0,0.15260558]
[1729844808753,0.15641202,67578.0,67577.0,0.00462658]
[1729844809232,0.30438902,67578.0,67577.0,0.00462658]
[1729844810040,0.15641202,67578.0,67577.0,0.00462658]
[1729844810247,0.005,67577.0,67572.0,0.297623]
[1729844810506,0.005,67577.0,67575.0,0.147983]
[1729844810710,0.005,67577.0,67576.0,0.00462663]
[1729844810910,0.15641202,67577.0,67576.0,0.00462663]
[1729844812249,0.005,67577.0,67576.0,0.15260763]
[1729844812481,0.15641202,67577.0,67576.0,0.00462663]
[1729844814322,0.10937945,67577.0,67576.0,0.00462663]
[1729844814640,0.25735845,67577.0,67576.0,0.00462663]
[1729844814861,0.10937945,67577.0,67576.0,0.00462663]
[1729844815084,0.10937945,67577.0,67575.0,0.147982]
[1729844815327,0.10937945,67577.0,67573.0,0.147986]
[1729844815530,0.10437945,67574.0,67573.0,0.147986]
[1729844816191,0.10437945,67574.0,67573.0,0.15538861]
[1729844816448,0.10437945,67574.0,67573.0,0.16001524]
[1729844816815,0.10437945,67574.0,67573.0,0.01202924]
[1729844817471,0.25236445,67574.0,67573.0,0.00462663]
[1729844817951,0.25236445,67574.0,67572.0,0.001646]
[1729844817952,0.015,67573.0,67572.0,0.001646]
[1729844818179,0.29036745,67573.0,67572.0,0.001646]
[1729844818629,0.62363405,67573.0,67572.0,0.001646]
[1729844818808,0.75837594,67573.0,67572.0,0.001646]
[1729844819011,0.78050398,67573.0,67572.0,0.001646]
[1729844819600,0.66986376,67573.0,67572.0,0.001646]
[1729844820375,0.71703555,67573.0,67572.0,0.001646]
[1729844820579,0.71903555,67573.0,67572.0,0.001646]
[1729844821250,0.67280584,67573.0,67572.0,0.001646]
[1729844821626,0.67080584,67573.0,67572.0,0.001646]
[1729844821979,0.67080708,67573.0,67572.0,0.001646]
[1729844822208,0.78165041,67573.0,67572.0,0.001646]
[1729844822615,0.67080708,67573.0,67572.0,0.001646]
[1729844825219,0.81382954,67573.0,67572.0,0.001646]
[1729844825679,0.67080708,67573.0,67572.0,0.001646]
[1729844826418,0.75943915,67573.0,67572.0,0.001646]
[1729844827043,0.60788791,67573.0,67572.0,0.001646]
[1729844827244,0.75943915,67573.0,67572.0,0.001646]
[1729844828343,0.67080708,67573.0,67572.0,0.001646]
[1729844829301,0.50713924,67573.0,67572.0,0.001646]
[1729844829913,0.33753924,67573.0,67572.0,0.001646]
[1729844830188,0.22385329,67573.0,67572.0,0.001646]
[1729844830523,0.175988,67573.0,67572.0,0.001646]
[1729844830908,0.32753924,67573.0,67572.0,0.001646]
[1729844831358,0.17455124,67573.0,67572.0,0.001646]
[1729844831562,0.17955124,67573.0,67572.0,0.001646]
[1729844832821,0.17455124,67573.0,67572.0,0.001646]
[1729844833231,0.17955124,67573.0,67572.0,0.001646]
[1729844833885,0.17455124,67573.0,67572.0,0.001646]
[1729844834088,0.17455124,67573.0,67572.0,0.149636]
[1729844834089,0.15155124,67573.0,67572.0,0.149636]
[1729844836054,0.15155124,67577.0,67572.0,0.001646]
[1729844836216,0.15155124,67577.0,67574.0,0.147984]
[1729844836979,0.15155124,67577.0,67575.0,0.147982]
[1729844837533,0.005,67575.0,67574.0,0.0918]
[1729844837738,0.15155124,67577.0,67574.0,0.0918]
[1729844837976,0.005,67575.0,67574.0,0.0918]
[1729844839009,0.29953024,67577.0,67572.0,0.001646]
[1729844839010,0.005,67573.0,67572.0,0.001646]
[1729844839277,0.15655124,67573.0,67572.0,0.001646]
[1729844839705,0.32753924,67573.0,67572.0,0.001646]
[1729844839904,0.32253924,67573.0,67572.0,0.001646]
[1729844840218,0.32753924,67573.0,67572.0,0.001646]
[1729844840435,0.28038476,67573.0,67572.0,0.001646]
[1729844842558,0.023,67577.0,67573.0,0.224387]
[1729844842753,0.023,67577.0,67573.0,0.0764]
[1729844842985,0.10939676,67575.0,67573.0,0.0764]
[1729844843358,0.10939676,67575.0,67573.0,0.224388]
[1729844843842,0.10939676,67575.0,67574.0,0.147985]
[1729844844485,0.005,67575.0,67574.0,0.147985]
[1729844844691,0.15146919,67577.0,67575.0,0.147983]
[1729844844896,0.15146919,67577.0,67576.0,0.147981]
[1729844845319,0.15146919,67577.0,67574.0,0.29597]
[1729844845770,0.15146919,67577.0,67574.0,0.147985]
[1729844846169,0.005,67576.0,67574.0,0.147985]
[1729844846909,0.005,67576.0,67573.0,0.0764]
[1729844847114,0.152982,67576.0,67572.0,0.149634]
[1729844847358,0.15146919,67573.0,67572.0,0.149634]
[1729844847595,0.15146919,67573.0,67572.0,0.001646]
[1729844848375,0.29945719,67573.0,67572.0,0.001646]
[1729844848576,0.32245719,67573.0,67572.0,0.001646]
[1729844851247,0.17446919,67573.0,67572.0,0.001646]
[1729844851678,0.32245719,67573.0,67572.0,0.001646]
[1729844851897,0.17446919,67573.0,67572.0,0.001646]
[1729844852406,0.023,67573.0,67572.0,0.001646]
[1729844852637,0.023,67574.0,67572.0,0.001646]
[1729844855487,0.023,67574.0,67572.0,0.149636]
[1729844856206,0.023,67574.0,67573.0,0.147988]
[1729844856449,0.023,67574.0,67572.0,0.001646]
[1729844857913,0.295955,67578.0,67572.0,0.001646]
[1729844857914,0.22293664,67581.0,67575.0,0.0965]
[1729844858126,0.04513463,67580.0,67575.0,0.0965]
[1729844858624,0.023823,67580.0,67576.0,0.295961]
[1729844858827,0.023823,67580.0,67579.0,0.147974]
[1729844859243,0.023823,67580.0,67579.0,0.1526005]
[1729844859502,0.000823,67580.0,67579.0,0.1526005]
[1729844859908,0.000823,67580.0,67579.0,0.2316005]
[1729844860527,0.000823,67580.0,67579.0,0.3304005]
[1729844864423,0.000823,67580.0,67579.0,0.0046265]
[1729844865172,0.000823,67580.0,67579.0,0.1526005]
[1729844865371,0.000823,67580.0,67579.0,0.147974]
[1729844865601,0.000823,67580.0,67579.0,0.15260041]
[1729844867614,0.000823,67580.0,67579.0,0.47710422]
[1729844870235,0.000823,67580.0,67579.0,0.47710386]
[1729844872023,0.10515934,67580.0,67579.0,0.00462605]
[1729844872229,0.10515934,67580.0,67579.0,0.15260005]
[1729844872230,0.000823,67580.0,67579.0,0.15260005]
[1729844874933,0.000823,67580.0,67579.0,0.15424805]
[1729844875527,0.000823,67580.0,67579.0,0.00627405]
[1729844875728,0.000823,67580.0,67579.0,0.001648]
[1729844875957,0.000823,67580.0,67579.0,0.149622]
[1729844876231,0.000823,67580.0,67579.0,0.15424837]
[1729844876994,0.000823,67580.0,67579.0,0.149622]
[1729844880765,0.000823,67580.0,67579.0,0.001648]
[1729844881001,0.148795,67580.0,67579.0,0.001648]
[1729844881217,0.000823,67580.0,67579.0,0.001648]
[1729844881828,0.148795,67580.0,67579.0,0.001648]
[1729844881998,0.000823,67580.0,67579.0,0.001648]
[1729844882232,0.148795,67580.0,67579.0,0.001648]
[1729844882527,0.000823,67580.0,67579.0,0.001648]
[1729844884153,0.35733134,67580.0,67579.0,0.001648]
[1729844884383,0.36733134,67580.0,67579.0,0.001648]
[1729844884785,0.41164258,67580.0,67579.0,0.001648]
[1729844885227,0.30731184,67580.0,67579.0,0.001648]
[1729844885773,0.41164818,67580.0,67579.0,0.001648]
[1729844885930,1.41164818,67580.0,67579.0,0.001648]
[1729844889586,1.36733134,67580.0,67579.0,0.001648]
[1729844892841,1.262995,67580.0,67579.0,0.001648]
[1729844894034,1.30731763,67580.0,67579.0,0.001648]
[1729844894278,1.262995,67580.0,67579.0,0.001648]
[1729844894593,1.36733134,67580.0,67579.0,0.001648]
[1729844895089,1.262995,67580.0,67579.0,0.001648]
[1729844898191,1.30731887,67580.0,67579.0,0.001648]
[1729844900194,1.30732096,67580.0,67579.0,0.001648]
[1729844900405,1.262995,67580.0,67579.0,0.001648]
[1729844900780,1.186795,67580.0,67579.0,0.001648]
[1729844901420,1.23112175,67580.0,67579.0,0.001648]
[1729844901865,1.186795,67580.0,67579.0,0.001648]
[1729844902073,1.29113134,67580.0,67579.0,0.001648]
[1729844903223,1.33545809,67580.0,67579.0,0.001648]
[1729844903429,1.29113134,67580.0,67579.0,0.001648]
[1729844905651,2.29113134,67580.0,67579.0,0.001648]
[1729844907260,2.33545809,67580.0,67579.0,0.001648]
[1729844908139,2.29113134,67580.0,67579.0,0.001648]
[1729844909211,2.14315934,67580.0,67579.0,0.001648]
[1729844909433,2.29113134,67580.0,67579.0,0.001648]
[1729844910495,2.14113134,67580.0,67579.0,0.001648]
[1729844910679,2.16413134,67580.0,67579.0,0.001648]
[1729844911338,2.01393134,67580.0,67579.0,0.001648]
[1729844911675,1.99093134,67580.0,67579.0,0.001648]
[1729844920580,2.03526731,67580.0,67579.0,0.001648]
[1729844920817,1.99093134,67580.0,67579.0,0.001648]
[1729844921021,1.93093097,67580.0,67579.0,0.001648]
[1729844921234,2.05825929,67580.0,67579.0,0.001648]
[1729844922647,2.05831155,67580.0,67579.0,0.001648]
[1729844925969,2.15557004,67580.0,67579.0,0.001648]
[1729844926174,2.24431193,67580.0,67579.0,0.001648]
[1729844926373,2.15557004,67580.0,67579.0,0.001648]
[1729844926843,2.24433103,67580.0,67579.0,0.001648]
[1729844927043,2.15557417,67580.0,67579.0,0.001648]
[1729844927186,2.13999417,67580.0,67579.0,0.001648]
[1729844927388,2.24433051,67580.0,67579.0,0.001648]
[1729844927592,2.05832707,67580.0,67579.0,0.001648]
[1729844928247,2.05832707,67580.0,67579.0,0.00627464]
[1729844929262,1.99175534,67580.0,67579.0,0.00627464]
[1729844929891,1.734447,67580.0,67579.0,0.00627464]
[1729844930101,1.77883783,67580.0,67579.0,0.32484864]
[1729844930314,1.739447,67580.0,67579.0,0.32484864]
[1729844930528,1.729447,67580.0,67579.0,0.32484864]
[1729844931244,1.739447,67580.0,67579.0,0.32484864]
[1729844932162,1.729447,67580.0,67579.0,0.32484864]
[1729844933630,1.739447,67580.0,67579.0,0.32484864]
[1729844933845,1.729447,67580.0,67579.0,0.32484864]
[1729844934808,1.739447,67580.0,67579.0,0.32484864]
[1729844935042,1.729447,67580.0,67579.0,0.32484864]
[1729844935264,1.739447,67580.0,67579.0,0.32484864]
[1729844935940,1.739447,67580.0,67579.0,0.17687464]
[1729844937503,1.78381969,67580.0,67579.0,0.172248]
[1729844937736,1.78381969,67580.0,67579.0,0.00627453]
[1729844937737,1.84378334,67580.0,67579.0,0.00627453]
[1729844938005,1.99175534,67580.0,67579.0,0.00627453]
[1729844938244,2.04831438,67580.0,67579.0,0.001648]
[1729844938470,1.739447,67580.0,67579.0,0.001648]
[1729844938697,1.84378334,67580.0,67579.0,0.001648]
[1729844939454,1.78382145,67580.0,67579.0,0.001648]
[1729844939962,1.739447,67580.0,67579.0,0.001648]
[1729844940193,1.7838214,67580.0,67579.0,0.001648]
[1729844940455,1.739447,67580.0,67579.0,0.0062745]
[1729844940953,1.887419,67580.0,67579.0,0.001648]
[1729844941185,1.93179462,67580.0,67579.0,0.001648]
[1729844941391,1.887419,67580.0,67579.0,0.0062745]
[1729844941903,1.887419,67580.0,67579.0,0.001648]
[1729844942148,1.95397944,67580.0,67579.0,0.001648]
[1729844943397,1.887419,67580.0,67579.0,0.001648]
[1729844943634,1.95397944,67580.0,67579.0,0.001648]
[1729844946681,1.95399091,67580.0,67579.0,0.001648]
[1729844947113,1.9539909,67580.0,67579.0,0.001648]
[1729844947323,1.729447,67580.0,67579.0,0.001648]
[1729844947566,1.92179864,67580.0,67579.0,0.00627455]
[1729844947805,1.94399024,67580.0,67579.0,0.001648]
[1729844948037,1.877419,67580.0,67579.0,0.001648]
[1729844948284,1.7738275,67580.0,67579.0,0.15424857]
[1729844948520,1.729447,67580.0,67579.0,0.15424853]
[1729844948774,1.729447,67580.0,67579.0,0.00627453]
[1729844949749,1.729447,67580.0,67579.0,0.15424853]
[1729844949988,1.729447,67580.0,67579.0,0.149622]
[1729844950231,1.729447,67580.0,67579.0,0.15424852]
[1729844950702,1.729447,67580.0,67579.0,0.00627452]
[1729844950934,1.729447,67580.0,67579.0,0.23084852]
[1729844951175,1.729447,67580.0,67579.0,0.18267452]
[1729844951875,1.729447,67580.0,67579.0,0.33064852]
[1729844953613,1.729447,67580.0,67579.0,0.33805061]
[1729844954081,1.729447,67580.0,67579.0,0.48855442]
[1729844954338,1.729447,67580.0,67579.0,0.49355442]
[1729844960586,1.729447,67580.0,67579.0,0.48152581]
[1729844960802,1.729447,67580.0,67579.0,0.49355237]
[1729844964258,1.729447,67580.0,67579.0,0.49355235]
[1729844971293,1.729447,67580.0,67579.0,0.48152581]
[1729844971495,1.729447,67580.0,67579.0,0.49355232]
[1729844972061,1.729447,67580.0,67579.0,0.48855232]
[1729844972283,1.729447,67580.0,67579.0,0.48855276]
[1729844972507,1.729447,67580.0,67579.0,0.48115156]
[1729844972705,1.729447,67580.0,67579.0,0.48855276]
[1729844975121,1.729447,67580.0,67579.0,0.4885531]
[1729844984453,1.729447,67580.0,67579.0,0.3121531]
[1729844985249,1.729447,67580.0,67579.0,0.16164929]
[1729844990050,1.729447,67580.0,67579.0,0.16164944]
[1729844993604,1.729447,67580.0,67579.0,0.16164934]
[1729845000359,1.729447,67580.0,67579.0,0.149622]
[1729845000584,1.729447,67580.0,67579.0,0.16164887]
[1729845003874,1.729447,67580.0,67579.0,0.149622]
[1729845004108,1.729447,67580.0,67579.0,0.16164908]
[1729845007515,1.729447,67580.0,67579.0,0.16164916]
[1729845014588,1.823247,67580.0,67579.0,0.15702333]
[1729845014833,1.823247,67580.0,67579.0,0.16165006]
[1729845017400,1.729447,67580.0,67579.0,0.16165006]
[1729845018355,1.729447,67580.0,67579.0,0.16164971]
[1729845021997,1.729447,67580.0,67579.0,0.149622]
[1729845022214,1.729447,67580.0,67579.0,0.16165008]
[1729845025553,1.729447,67580.0,67579.0,0.15424816]
[1729845025762,1.729447,67580.0,67579.0,0.16165002]
[1729845027511,1.729447,67580.0,67579.0,0.59289017]
[1729845027715,1.729447,67580.0,67579.0,0.74208808]
[1729845027988,1.729447,67580.0,67579.0,0.76418704]
[1729845028210,1.729447,67580.0,67579.0,0.85537353]
[1729845028420,1.729447,67580.0,67579.0,0.86153197]
[1729845028629,1.729447,67580.0,67579.0,2.60286197]
[1729845028829,1.729447,67580.0,67579.0,2.10259419]
[1729845029051,1.729447,67580.0,67579.0,1.18743005]
[1729845029268,1.729447,67580.0,67579.0,1.00561152]
[1729845029488,1.729447,67580.0,67579.0,1.11593167]
[1729845030103,0.729547,67580.0,67579.0,0.76073383]
[1729845031361,0.729547,67580.0,67579.0,0.75873383]
[1729845031513,0.729547,67580.0,67579.0,0.76073383]
[1729845031869,0.729547,67580.0,67579.0,0.75873383]
[1729845032095,0.729547,67580.0,67579.0,0.86307017]
[1729845033502,0.729547,67580.0,67579.0,0.86507017]
[1729845033726,0.729547,67580.0,67579.0,0.86307017]
[1729845034916,0.729547,67580.0,67579.0,0.86507017]
[1729845035161,0.729547,67580.0,67579.0,0.75873383]
[1729845035670,0.000823,67586.0,67579.0,0.75873383]
[1729845035671,0.000823,67586.0,67585.0,0.64583368]
[1729845035959,0.000823,67586.0,67585.0,0.83529246]
[1729845036223,0.000838,67597.0,67596.0,0.52647334]
[1729845036460,0.000838,67597.0,67596.0,0.68397715]
[1729845036702,0.000838,67597.0,67596.0,0.68160094]
[1729845036959,0.000838,67597.0,67596.0,0.4080646]
[1729845037437,0.000838,67597.0,67596.0,0.51240094]
[1729845037677,0.000838,67597.0,67596.0,0.53296085]
[1729845038639,0.000838,67597.0,67596.0,0.42862451]
[1729845039615,0.000838,67597.0,67596.0,0.42400072]
[1729845039867,0.000838,67597.0,67596.0,0.53296131]
[1729845043225,0.000838,67597.0,67596.0,0.53296124]
[1729845049686,0.000838,67597.0,67596.0,0.4286249]
[1729845049898,0.000838,67597.0,67596.0,0.53296124]
[1729845051201,0.000838,67597.0,67596.0,0.60996124]
[1729845052883,0.000838,67597.0,67596.0,0.70886124]
[1729845053352,0.000838,67597.0,67596.0,0.70686124]
[1729845054414,0.000838,67597.0,67596.0,0.70886124]
[1729845054625,0.000838,67597.0,67596.0,0.70686124]
[1729845057095,0.000838,67597.0,67596.0,0.70886124]
[1729845057526,0.000838,67597.0,67596.0,1.11079994]
[1729845057749,0.000838,67597.0,67596.0,1.07566724]
[1729845058162,0.000838,67597.0,67596.0,1.07766724]
[1729845058386,0.000838,67597.0,67596.0,1.08766724]
[1729845058597,0.000838,67597.0,67596.0,1.1206037]
[1729845058831,0.000838,67597.0,67596.0,0.91093724]
[1729845059038,0.000838,67597.0,67596.0,0.88692724]
[1729845059247,0.000838,67597.0,67596.0,0.88892724]
[1729845059457,0.000838,67597.0,67596.0,0.9198637]
[1729845060094,0.000838,67597.0,67596.0,0.91523952]
[1729845060533,0.000838,67597.0,67596.0,0.88692652]
[1729845060950,0.000838,67597.0,67596.0,0.99126286]
[1729845061178,0.000838,67597.0,67596.0,0.88692652]
[1729845061383,0.000838,67597.0,67596.0,1.76613064]
[1729845061590,0.000838,67597.0,67596.0,2.06512298]
[1729845061795,0.000838,67597.0,67596.0,1.88774452]
[1729845062017,0.000838,67597.0,67596.0,0.75549218]
[1729845062236,0.000838,67597.0,67596.0,0.71223706]
[1729845062457,0.000838,67597.0,67596.0,0.72386048]
[1729845063081,0.000838,67597.0,67596.0,0.75679694]
[1729845063293,0.000838,67597.0,67596.0,2.84430594]
[1729845063548,0.000838,67597.0,67596.0,3.08093082]
[1729845063752,0.000838,67597.0,67596.0,2.97659448]
[1729845064596,0.000838,67597.0,67596.0,3.08093082]
[1729845064828,0.000838,67597.0,67596.0,2.97659448]
[1729845065039,0.000838,67597.0,67596.0,3.00953094]
[1729845065248,0.000838,67597.0,67596.0,3.11186728]
[1729845065453,1e-06,67597.0,67596.0,3.15777725]
[1729845065688,1e-06,67597.0,67596.0,3.01850445]
[1729845065900,1e-06,67597.0,67596.0,3.05344091]
[1729845066171,1e-06,67597.0,67596.0,3.05144091]
[1729845066401,1e-06,67597.0,67596.0,3.15577725]
[1729845066621,1e-06,67597.0,67596.0,3.01850445]
[1729845066831,1e-06,67597.0,67596.0,2.58293345]
[1729845067040,1e-06,67597.0,67596.0,2.39289345]
[1729845067252,1e-06,67597.0,67596.0,2.32968045]
[1729845067473,1e-06,67597.0,67596.0,2.28577048]
[1729845067691,0.000838,67615.0,67606.0,0.62968768]
[1729845067913,0.000838,67615.0,67606.0,0.79206145]
[1729845068175,0.000838,67615.0,67606.0,0.79906145]
[1729845068388,0.000838,67615.0,67606.0,0.82999791]
[1729845068862,0.000838,67615.0,67606.0,0.68772511]
[1729845069331,0.000838,67615.0,67606.0,0.81612795]
[1729845069539,0.000838,67615.0,67606.0,0.79906125]
[1729845069759,0.000838,67615.0,67606.0,0.82999771]
[1729845069968,0.000838,67615.0,67606.0,0.83199771]
[1729845070616,0.000838,67615.0,67606.0,0.82999771]
[1729845071479,0.000838,67615.0,67606.0,0.54195637]
[1729845072779,0.000838,67615.0,67606.0,0.52808661]
[1729845072992,0.000838,67615.0,67606.0,0.43762011]
[1729845073199,0.000838,67615.0,67606.0,0.54195645]
[1729845073417,0.000838,67615.0,67606.0,0.43762011]
[1729845073623,0.0921,67610.0,67606.0,0.43762011]
[1729845080530,0.0921,67610.0,67606.0,0.42375027]
[1729845080747,0.0921,67610.0,67606.0,0.43762119]
[1729845081671,0.000838,67615.0,67606.0,0.43762119]
[1729845081898,0.096838,67615.0,67606.0,0.43762119]
[1729845082403,0.080038,67607.0,67606.0,0.43762119]
[1729845082701,0.080038,67607.0,67606.0,0.43262119]
[1729845082871,0.080038,67607.0,67606.0,0.16178592]
[1729845082872,0.32729155,67607.0,67606.0,0.16178592]
[1729845083289,0.32729155,67607.0,67606.0,0.15253864]
[1729845083290,0.33475601,67607.0,67606.0,0.15253864]
[1729845083733,0.33475601,67607.0,67606.0,0.147915]
[1729845083944,0.33475601,67607.0,67606.0,0.15253937]
[1729845084389,0.18350246,67607.0,67606.0,0.15253937]
[1729845084600,0.18350246,67607.0,67606.0,0.31229187]
[1729845084811,0.176038,67607.0,67606.0,0.30304318]
[1729845085883,0.176038,67607.0,67606.0,0.31229101]
[1729845091687,0.1834771,67607.0,67606.0,0.31229101]
[1729845091895,0.1834771,67607.0,67606.0,0.30304318]
[1729845095105,0.1834771,67607.0,67606.0,0.15253937]
[1729845095799,0.1834771,67607.0,67606.0,0.00462437]
[1729845095800,0.33473065,67607.0,67606.0,0.00462437]
[1729845096455,0.33473065,67607.0,67606.0,0.15253937]
[1729845096704,0.33473065,67607.0,67606.0,0.01202343]
[1729845096924,0.33473065,67607.0,67606.0,0.00462437]
[1729845097154,0.32729155,67607.0,67606.0,0.00462437]
[1729845097375,0.33473065,67607.0,67606.0,0.00462437]
[1729845098049,0.1744,67606.0,67605.0,0.147917]
[1729845098265,0.1744,67606.0,67605.0,0.15254158]
[1729845098485,0.18184345,67606.0,67605.0,0.15254158]
[1729845098706,0.13184345,67606.0,67605.0,0.15254158]
[1729845099601,0.1244,67606.0,67605.0,0.15254158]
[1729845100022,0.13184345,67606.0,67605.0,0.15254158]
[1729845100887,0.13184345,67606.0,67605.0,0.15994068]
[1729845101802,0.13184345,67606.0,67605.0,0.15994042]
[1729845103561,0.08744345,67606.0,67605.0,0.15994042]
[1729845105525,0.08744345,67606.0,67605.0,0.15994028]
[1729845106390,0.00744345,67606.0,67605.0,0.15994028]
[1729845108307,0.00744345,67606.0,67605.0,0.31044409]
[1729845108750,0.000838,67607.0,67605.0,0.31044409]
[1729845108751,0.000838,67607.0,67606.0,0.147915]
[1729845108963,0.000838,67607.0,67606.0,0.31969077]
[1729845109446,0.000838,67607.0,67606.0,0.31968861]
[1729845113080,0.000838,67607.0,67606.0,0.29841881]
[1729845113302,0.000838,67607.0,67606.0,0.30766661]
[1729845113520,0.10426642,67614.0,67606.0,0.17177375]
[1729845113741,0.10426642,67614.0,67613.0,0.1479]
[1729845113949,0.10426642,67614.0,67613.0,0.15992214]
[1729845114657,0.079638,67615.0,67614.0,0.147898]
[1729845114850,0.079638,67615.0,67614.0,0.15992014]
[1729845116836,0.079638,67615.0,67614.0,0.147898]
[1729845117046,0.079638,67615.0,67614.0,0.16916776]
[1729845117226,0.079638,67615.0,67614.0,0.15992004]
[1729845117667,0.000838,67615.0,67614.0,0.15992004]
[1729845119771,0.000838,67615.0,67614.0,0.31967153]
[1729845120465,0.000838,67615.0,67614.0,0.52293795]
[1729845120675,0.000838,67615.0,67614.0,0.52293464]
[1729845120909,0.000838,67615.0,67614.0,0.41866822]
[1729845123089,0.000838,67615.0,67614.0,0.39740181]
[1729845125038,0.000838,67615.0,67614.0,0.60166823]
[1729845125663,0.000838,67615.0,67614.0,0.49740181]
[1729845127413,0.000838,67615.0,67614.0,0.51866788]
[1729845128738,0.017653,67626.0,67625.0,0.147874]
[1729845128949,0.017653,67626.0,67622.0,0.00924612]
[1729845128950,0.0958,67625.0,67622.0,0.00924612]
[1729845129166,0.10426642,67623.0,67622.0,0.00924612]
[1729845129365,0.147883,67621.0,67617.0,0.00924612]
[1729845129577,0.10426642,67620.0,67618.0,0.01202077]
[1729845129837,0.10426642,67620.0,67619.0,0.01202077]
[1729845130480,0.52801784,67620.0,67619.0,0.01202077]
[1729845130697,0.52801784,67620.0,67619.0,0.00462337]
[1729845130905,0.53801784,67620.0,67613.0,0.00739838]
[1729845131120,0.53801784,67620.0,67609.0,0.36830987]
[1729845131121,0.10426642,67613.0,67609.0,0.22040187]
[1729845131336,0.10426642,67610.0,67609.0,0.22040187]
[1729845131561,0.19516642,67610.0,67609.0,0.23242498]
[1729845131777,0.19516642,67610.0,67609.0,0.01202311]
[1729845131994,0.18516642,67610.0,67609.0,0.01202311]
[1729845132430,0.24221401,67610.0,67609.0,0.01202311]
[1729845132860,0.24221401,67610.0,67609.0,0.00462427]
[1729845133495,0.0909,67610.0,67609.0,0.15253327]
[1729845133711,0.15131401,67614.0,67609.0,0.01202314]
[1729845133930,0.15131401,67614.0,67611.0,0.147904]
[1729845134143,0.15131401,67614.0,67612.0,0.00462427]
[1729845134347,0.15131401,67614.0,67613.0,0.00462427]
[1729845134556,0.15131401,67614.0,67613.0,0.15252427]
[1729845134766,0.15131401,67614.0,67613.0,0.00462427]
[1729845135255,0.15131401,67622.0,67615.0,0.295791]
[1729845135464,0.29919501,67622.0,67616.0,0.00462427]
[1729845135667,0.29919501,67622.0,67617.0,0.00462427]
[1729845135668,0.147883,67621.0,67617.0,0.00462427]
[1729845135860,0.15131401,67622.0,67618.0,0.00462427]
[1729845136066,0.15131401,67622.0,67619.0,0.00462427]
[1729845136242,0.15131401,67622.0,67620.0,0.00462427]
[1729845136405,0.15131401,67622.0,67615.0,0.295791]
[1729845136406,0.29919401,67622.0,67621.0,0.00462427]
[1729845137018,0.15131401,67622.0,67621.0,0.00462427]
[1729845137818,0.147879,67623.0,67621.0,0.00462427]
[1729845138020,0.0826,67624.0,67618.0,0.295776]
[1729845138229,0.0826,67624.0,67621.0,0.147881]
[1729845138470,0.0826,67624.0,67622.0,0.00462386]
[1729845138675,0.0826,67624.0,67623.0,0.00462386]
[1729845139122,0.017653,67626.0,67623.0,0.15250186]
[1729845139335,0.017653,67626.0,67624.0,0.00462386]
[1729845139534,0.017653,67626.0,67625.0,0.00462386]
[1729845140880,0.017653,67626.0,67625.0,0.15249738]
[1729845141106,0.017653,67626.0,67625.0,0.00462338]
[1729845141303,0.017653,67626.0,67625.0,0.15249738]